[Event "GER-ch Youth-U12 2022"]
[Site "Willingen"]
[Date "2022.06.07"]
[Round "4.2"]
[White "Gloeckler, Christian"]
[Black "Riechenberg, Sebastian"]
[Result "1-0"]
[ECO "C96"]
[WhiteElo "1869"]
[BlackElo "1668"]
[Annotator "NA RC COMBH"]
[PlyCount "82"]
[EventDate "2022.06.05"]
[EventType "swiss"]
[EventRounds "9"]
[EventCountry "GER"]
[SourceTitle "playchess.com"]
[Source "ChessBase"]
[SourceQuality "1"]
[TimeControl "40/4500+30:900+30"]

1. e4 {[%emt 0:00:00]} e5 {[%emt 0:00:00]} 2. Nf3 {[%emt 0:00:00]} Nc6 {[%emt 0:00:05]} 3. Bb5 {[%emt 0:00:00]} a6 {[%emt 0:00:00]} 4. Ba4 {[%emt 0:00:00]} Nf6 {[%emt 0:00:00]} 5. O-O {[%emt 0:00:00]} Be7 {[%emt 0:00:00]} 6. Re1 {[%emt 0:00:00]} b5 {[%emt 0:00:00]} 7. Bb3 {[%emt 0:00:00]} O-O {[%emt 0:00:00]} 8. h3 {[%emt 0:00:00]} d6 {[%emt 0:00:00]} 9. c3 {[%emt 0:00:00]} Na5 {[%emt 0:00:00]} 10. Bc2 {[%emt 0:00:00]} c5 {[%emt 0:00:00]} 11. d4 {[%emt 0:00:00]} cxd4 {[%emt 0:00:00]} 12. cxd4 {[%emt 0:00:00]} exd4 {[%emt 0:00:00]} 13. Nxd4 {[%emt 0:00:00]} Qc7 {[%emt 0:00:00]} 14. Nc3 {[%emt 0:00:00]} Re8 {[%emt 0:00:00]} 15. a3 {[%emt 0:00:54]} Nc6 {[%emt 0:00:00]} 16. Nxc6 {[%emt 0:02:01]} Qxc6 {[%emt 0:02:13]} 17. Bb3 {[%emt 0:00:26]} Bf8 {[%emt 0:11:47]} 18. Re3 {[%emt 0:05:15]} Be6 {[%emt 0:07:39]} 19. Nd5 {[%emt 0:04:03]} Bxd5 {[%emt 0:03:26]} 20. exd5 {[%emt 0:00:49]} Qb7 {[%emt 0:01:47]} 21. Qf3 {[%emt 0:02:20]} a5 {[%emt 0:02:03]} 22. Bd2 {[%emt 0:01:53]} Rxe3 {[%emt 0:05:51]} 23. Qxe3 {[%emt 0:00:44]} Re8 {[%emt 0:01:08]} 24. Qd3 {[%emt 0:00:42]} a4 {[%emt 0:01:55]} 25. Ba2 {[%emt 0:03:40]} Nd7 {[%emt 0:01:42]} 26. Bb4 {[%emt 0:06:05]} Ne5 {[%emt 0:01:00]} 27. Qe2 {[%emt 0:05:46]} Qd7 {[%emt 0:04:19]} 28. Re1 {[%emt 0:02:18]} Qf5 {[%emt 0:02:16]} (28... Re7 $11) 29. Qxb5 {[%emt 0:07:52]} Re7 {[%emt 0:01:19]} 30. Re3 {[%emt 0:05:42]} ({Don't blunder} 30. Bxd6 $2 {[#]} Nf3+ $1 {[%mdl 512]} 31. gxf3 Rxe1+ 32. Qf1 Rxf1+ $19) (30. Rf1 $18 Qd7 31. Qe2) 30... Rc7 {[%emt 0:01:51]} 31. Qf1 {[%emt 0:01:30]} ({Stronger than} 31. Qxa4 Rc1+ 32. Re1 Rc2 $15) 31... g6 {[%emt 0:00:55]} 32. Bb1 {[%emt 0:04:12]} Qh5 {[%emt 0:00:54]} (32... Qc8 $16 33. Rc3 Nd7) 33. Rc3 {[%emt 0:01:49]} Rd7 {[%emt 0:00:34]} 34. f4 {[%emt 0:02:04]} Bh6 {[%emt 0:00:28]} 35. fxe5 {[%emt 0:00:49]} Qxe5 {[%emt 0:00:06]} 36. Rc8+ {[%emt 0:00:16]} Bf8 {[%emt 0:00:08]} 37. Bc3 {[%emt 0:00:44]} Qe3+ {[%emt 0:00:23]} 38. Kh2 {[%emt 0:00:27]} f5 $18 {[%emt 0:00:32]} 39. Qf3 {[%emt 0:03:04]} Qc1 {[%emt 0:00:44]} 40. Bxf5 {[%emt 0:00:40]} Re7 {[%emt 0:00:30]} 41. Be6+ {[%emt 0:15:12]} Rxe6 {[%emt 0:15:01]} 1-0

[Event "GER-ch Youth-U12 2022"]
[Site "Willingen"]
[Date "2022.06.07"]
[Round "4.3"]
[White "Herrmann, Arthur"]
[Black "Zhuikov, Edgard"]
[Result "1-0"]
[ECO "C63"]
[WhiteElo "1507"]
[BlackElo "1892"]
[Annotator "NA RC COMBH"]
[PlyCount "67"]
[EventDate "2022.06.05"]
[EventType "swiss"]
[EventRounds "9"]
[EventCountry "GER"]
[SourceTitle "playchess.com"]
[Source "ChessBase"]
[SourceQuality "1"]
[TimeControl "40/4500+30:900+30"]

1. e4 {[%emt 0:00:00]} e5 {[%emt 0:00:00]} 2. Nf3 {[%emt 0:00:00]} Nc6 {[%emt 0:00:00]} 3. Bb5 {[%emt 0:00:00]} f5 {[%emt 0:00:00]} 4. d3 {[%emt 0:00:00]} fxe4 {[%emt 0:00:00]} 5. dxe4 {[%emt 0:00:00]} Nf6 {[%emt 0:00:00]} 6. O-O {[%emt 0:00:00]} d6 {[%emt 0:00:00]} 7. Nc3 {[%emt 0:00:00]} Be7 {[%emt 0:00:00]} 8. Bg5 {[%emt 0:00:00]} O-O {[%emt 0:00:00]} 9. Bxf6 {[%emt 0:01:36]} Rxf6 {[%emt 0:00:00]} 10. Ng5 {[%emt 0:13:17]} Qe8 {[%emt 0:00:00]} 11. Bc4+ {[%emt 0:04:48]} Kh8 {[%emt 0:00:00]} 12. Nd5 {[%emt 0:01:46]} Rf8 {[%emt 0:00:00]} 13. Nxc7 {[%emt 0:03:48]} Qg6 {[%emt 0:00:00]} 14. Nf7+ {[%emt 0:03:15]} Rxf7 {[%emt 0:00:00]} 15. Bxf7 {[%emt 0:00:08]} Qxf7 {[%emt 0:00:00]} 16. Nxa8 {[%emt 0:00:08]} Bf8 {[%emt 0:00:00]} 17. Qf3 {[%emt 0:02:11]} Qxf3 {[%emt 0:00:00]} 18. gxf3 {[%emt 0:00:03]} Bh3 {[%emt 0:00:00]} 19. Rfd1 {[%emt 0:02:15]} Nd4 {[%emt 0:00:00]} 20. Rd3 {[%emt 0:02:37]} Ne2+ {[%emt 0:00:00]} 21. Kh1 {[%emt 0:00:05]} Nf4 {[%emt 0:00:00]} 22. Rb3 {[%emt 0:01:14]} b6 {[%emt 0:00:00]} 23. Nc7 {[%emt 0:00:35]} Bd7 {[%emt 0:00:00]} 24. Nd5 {[%emt 0:00:49]} Ne2 {[%emt 0:00:00]} 25. c3 {[%emt 0:01:19]} Be8 {[%emt 0:00:00]} 26. Re1 {[%emt 0:00:53]} Bh5 {[%emt 0:00:00]} 27. Kg2 {[%emt 0:00:18]} Nf4+ {[%emt 0:00:00]} 28. Nxf4 {[%emt 0:00:09]} exf4 {[%emt 0:00:00]} 29. e5 {[%emt 0:00:28]} d5 {[%emt 0:00:00]} 30. Rb5 {[%emt 0:00:21]} Bf7 {[%emt 0:00:00]} 31. e6 {[%emt 0:00:09]} Be8 {[%emt 0:00:00]} 32. Rxd5 {[%emt 0:00:09]} Be7 {[%emt 0:00:00]} 33. Rd7 {[%emt 0:01:42]} Bc5 {[%emt 0:00:00]} 34. Rd8 {[%emt 0:00:22]} 1-0

[Event "GER-ch Youth-U12 2022"]
[Site "Willingen"]
[Date "2022.06.07"]
[Round "4.4"]
[White "Malinowsky, Levi"]
[Black "Stichter, Constantin Paul"]
[Result "0-1"]
[ECO "C11"]
[WhiteElo "1816"]
[BlackElo "1472"]
[Annotator "NA RC COMBH"]
[PlyCount "124"]
[EventDate "2022.06.05"]
[EventType "swiss"]
[EventRounds "9"]
[EventCountry "GER"]
[SourceTitle "playchess.com"]
[Source "ChessBase"]
[SourceQuality "1"]
[TimeControl "40/4500+30:900+30"]

1. e4 {[%emt 0:00:00]} e6 {[%emt 0:00:00]} 2. d4 {[%emt 0:00:00]} d5 {[%emt 0:00:00]} 3. Nc3 {[%emt 0:00:00]} Nf6 {[%emt 0:00:00]} 4. e5 {[%emt 0:00:00]} Nfd7 {[%emt 0:00:00]} 5. f4 {[%emt 0:00:00]} c5 {[%emt 0:00:00]} 6. Nf3 {[%emt 0:00:00]} Nc6 {[%emt 0:00:00]} 7. Be3 {[%emt 0:00:00]} a6 {[%emt 0:00:00]} 8. Qd2 {[%emt 0:00:00]} b5 {[%emt 0:00:00]} 9. dxc5 {[%emt 0:00:00]} Bxc5 {[%emt 0:00:00]} 10. Nd4 {[%emt 0:00:00]} Bb7 {[%emt 0:00:00]} 11. O-O-O {[%emt 0:06:01]} Qa5 {[%emt 0:00:00]} 12. Kb1 {[%emt 0:03:01]} b4 {[%emt 0:00:00]} 13. Nce2 {[%emt 0:01:28]} Qb6 {[%emt 0:00:00]} 14. Bf2 {[%emt 0:06:48]} Na7 {[%emt 0:01:38]} 15. Nc1 {[%emt 0:04:51]} Qc7 {[%emt 0:09:56]} 16. Nd3 {[%emt 0:02:19]} a5 {[%emt 0:01:29]} 17. Nxc5 {[%emt 0:02:58]} Nxc5 {[%emt 0:00:29]} 18. Bd3 {[%emt 0:05:16]} Rc8 {[%emt 0:05:49]} 19. g4 {[%emt 0:02:20]} Ne4 {[%emt 0:01:16]} 20. Qe2 {[%emt 0:05:09]} O-O $11 {[%emt 0:08:07]} 21. h4 {[%emt 0:02:05]} a4 {[%emt 0:01:18]} 22. Rh3 {[%emt 0:07:04]} Qa5 {[%emt 0:02:15]} (22... Rfd8 $11) 23. h5 {[%emt 0:01:56]} b3 {[%emt 0:03:53]} ({Black should play} 23... Nc6 $14) 24. Bxe4 {[%emt 0:02:12]} bxa2+ {[%emt 0:00:15]} 25. Ka1 {[%emt 0:00:31]} dxe4 {[%emt 0:00:13]} 26. g5 {[%emt 0:02:07]} (26. h6 $14 {might be stronger.} g6 27. Qd2 (27. Kxa2 Bd5+ 28. Ka1 Rc4 $11) 27... Qxd2 28. Rxd2) 26... Nc6 {[%emt 0:00:59]} 27. g6 {[%emt 0:01:12]} h6 {[%emt 0:02:04]} (27... hxg6 28. hxg6 fxg6 29. Qg4 (29. Qxe4 Nxd4 30. Qxg6 Nxc2+ 31. Kxa2 Qb5 $11) 29... Nxd4 30. Bxd4 $18) 28. gxf7+ {[%emt 0:00:50] Remove Defender} ({Reject} 28. Qxe4 Nxd4 29. gxf7+ (29. Qxb7 $2 Rc7 $19) 29... Rxf7 30. Qxd4 Rxc2 $17) 28... Rxf7 {[%emt 0:00:02]} 29. Nxe6 {[%emt 0:04:12]} Nb4 $1 {[%emt 0:06:38]} 30. Bc5 {[%emt 0:07:07]} Nd5 {[%emt 0:00:45]} (30... Rxc5 $15 {stays ahead.} 31. Nxc5 Qxc5) 31. Qc4 {[%emt 0:04:54]} Nxf4 {[%emt 0:02:04]} 32. Nxf4 {[%emt 0:03:22]} Rxc5 {[%emt 0:00:51]} 33. Qe6 $2 {[%emt 0:01:20]} (33. Qxa2 Rxe5 34. Ng6) 33... Rxe5 {[%emt 0:04:18]} 34. Rd8+ {[%emt 0:03:23]} Qxd8 {[%emt 0:03:14]} 35. Qxe5 {[%emt 0:00:11]} Re7 {[%emt 0:01:13]} 36. Qc3 {[%emt 0:01:18]} Qd6 {[%emt 0:05:32]} 37. Ng6 {[%emt 0:02:28]} Rc7 {[%emt 0:02:29]} 38. Qe1 {[%emt 0:02:19]} Rxc2 {[%emt 0:00:24]} 39. Rf3 {[%emt 0:01:41]} Rc8 {[%emt 0:02:29]} 40. Rc3 {[%emt 0:00:52]} Rxc3 {[%emt 0:03:44]} 41. Qxc3 {[%emt 0:15:21]} Qd1+ {[%emt 0:15:04]} 42. Kxa2 {[%emt 0:00:08]} Bd5+ {[%emt 0:00:07]} 43. Ka3 {[%emt 0:00:06]} Qb3+ {[%emt 0:00:26]} 44. Qxb3 {[%emt 0:00:04]} Bxb3 {[%emt 0:00:07]} 45. Kb4 {[%emt 0:00:16]} Kf7 {[%emt 0:00:10]} 46. Kc3 {[%emt 0:00:19]} Kf6 {[%emt 0:00:10]} 47. Kd4 {[%emt 0:00:06]} Kg5 {[%emt 0:00:26]} 48. Ke3 {[%emt 0:01:07]} Kxh5 {[%emt 0:00:14]} 49. Ne5 {[%emt 0:00:10]} Kg5 {[%emt 0:00:14]} 50. Kf2 {[%emt 0:00:41]} Kf5 {[%emt 0:00:13]} 51. Nc6 {[%emt 0:00:09]} Kf4 {[%emt 0:00:09]} 52. Nd4 {[%emt 0:00:13]} g5 {[%emt 0:00:09]} 53. Ne2+ {[%emt 0:00:06]} Ke5 {[%emt 0:00:08]} 54. Ke3 {[%emt 0:00:07]} h5 {[%emt 0:00:08]} 55. Ng3 {[%emt 0:00:05]} h4 {[%emt 0:00:14]} 56. Nh1 {[%emt 0:00:17]} g4 {[%emt 0:00:07]} 57. Nf2 {[%emt 0:00:05]} Be6 {[%emt 0:00:11]} 58. Nxe4 {[%emt 0:00:08]} g3 {[%emt 0:00:08]} 59. Nc5 {[%emt 0:01:02]} h3 {[%emt 0:00:44]} 60. Kf3 {[%emt 0:00:11]} h2 {[%emt 0:00:09]} 61. Nd3+ {[%emt 0:00:26]} Kf5 {[%emt 0:00:11]} 62. Kxg3 {[%emt 0:00:09]} h1=Q {[%emt 0:00:07]} 0-1

[Event "GER-ch Youth-U12 2022"]
[Site "Willingen"]
[Date "2022.06.07"]
[Round "4.5"]
[White "Dordevic, Tom"]
[Black "Aniol, Nico"]
[Result "1-0"]
[ECO "A26"]
[WhiteElo "1771"]
[BlackElo "1494"]
[Annotator "NA RC COMBH"]
[PlyCount "155"]
[EventDate "2022.06.05"]
[EventType "swiss"]
[EventRounds "9"]
[EventCountry "GER"]
[SourceTitle "playchess.com"]
[Source "ChessBase"]
[SourceQuality "1"]
[TimeControl "40/4500+30:900+30"]

1. Nf3 {[%emt 0:00:00]} Nf6 {[%emt 0:00:00]} 2. g3 {[%emt 0:00:00]} g6 {[%emt 0:00:00]} 3. Bg2 {[%emt 0:00:00]} Bg7 {[%emt 0:00:00]} 4. O-O {[%emt 0:00:00]} O-O {[%emt 0:00:00]} 5. c4 {[%emt 0:00:00]} d6 {[%emt 0:00:00]} 6. Nc3 {[%emt 0:00:00]} Nc6 {[%emt 0:00:00]} 7. d3 {[%emt 0:00:00]} e5 {[%emt 0:00:00]} 8. Rb1 {[%emt 0:00:00]} a5 {[%emt 0:00:00]} 9. a3 {[%emt 0:00:00]} Re8 {[%emt 0:00:00]} 10. b4 {[%emt 0:00:00]} axb4 {[%emt 0:00:00]} 11. axb4 {[%emt 0:00:00]} e4 {[%emt 0:00:00]} 12. Nxe4 {[%emt 0:21:58]} Nxe4 {[%emt 0:02:43]} 13. dxe4 {[%emt 0:00:07]} Rxe4 {[%emt 0:00:18]} 14. b5 {[%emt 0:01:25]} Nd4 {[%emt 0:13:19]} 15. Nxd4 {[%emt 0:04:44]} Rxd4 {[%emt 0:00:06]} 16. Qc2 {[%emt 0:07:19]} Bf5 {[%emt 0:00:32]} 17. e4 {[%emt 0:00:13]} Be6 {[%emt 0:00:05]} 18. Rb4 {[%emt 0:01:20]} c5 {[%emt 0:00:31]} 19. bxc6 {[%emt 0:00:20]} bxc6 {[%emt 0:00:06]} 20. Bb2 {[%emt 0:06:36]} c5 {[%emt 0:01:51]} 21. Bxd4 {[%emt 0:00:57]} cxb4 {[%emt 0:00:04]} 22. Bxg7 {[%emt 0:00:07]} Kxg7 {[%emt 0:00:08]} 23. Qb2+ {[%emt 0:00:14]} Kg8 {[%emt 0:00:07]} 24. Qxb4 {[%emt 0:01:12]} Rb8 {[%emt 0:00:44]} 25. Qa4 {[%emt 0:01:05]} Qb6 {[%emt 0:01:06]} 26. h4 {[%emt 0:14:38]} Qb4 {[%emt 0:00:43]} 27. Qxb4 {[%emt 0:00:33]} Rxb4 {[%emt 0:00:29]} 28. Rd1 {[%emt 0:01:30]} Rxc4 {[%emt 0:00:58]} 29. Rxd6 {[%emt 0:01:09]} Rc1+ {[%emt 0:00:52]} 30. Kh2 {[%emt 0:00:05]} Rc2 {[%emt 0:00:12]} 31. f3 {[%emt 0:00:41]} h5 {[%emt 0:00:26]} 32. Rd1 {[%emt 0:01:11]} Bc4 {[%emt 0:00:26]} 33. Kg1 {[%emt 0:00:49]} Kg7 {[%emt 0:00:38]} 34. Bf1 {[%emt 0:01:37]} Bxf1 {[%emt 0:01:59]} 35. Rxf1 {[%emt 0:00:06]} Re2 {[%emt 0:00:50]} 36. Rf2 {[%emt 0:00:15]} Re1+ {[%emt 0:00:16]} 37. Rf1 {[%emt 0:00:41]} Re2 {[%emt 0:00:05]} 38. Rf2 {[%emt 0:00:05]} Re1+ {[%emt 0:00:04]} 39. Kg2 {[%emt 0:00:03]} Ra1 {[%emt 0:00:26]} 40. Rb2 {[%emt 0:00:45]} Ra7 {[%emt 0:00:17]} 41. Kf2 {[%emt 0:15:07]} Ra3 {[%emt 0:15:21]} 42. Ke2 {[%emt 0:00:57]} Kf6 {[%emt 0:00:45]} 43. Rd2 {[%emt 0:00:15]} Ke6 {[%emt 0:00:32]} 44. Rd3 {[%emt 0:00:14]} Ra2+ {[%emt 0:00:05]} 45. Ke3 {[%emt 0:00:08]} Ra6 {[%emt 0:00:43]} 46. Kf4 {[%emt 0:04:21]} Kf6 {[%emt 0:01:29]} 47. Rb3 {[%emt 0:07:44]} Ra7 {[%emt 0:01:59]} 48. Rb4 {[%emt 0:02:44]} Re7 {[%emt 0:00:58]} 49. Rb6+ {[%emt 0:02:31]} Kg7 {[%emt 0:00:56]} 50. Rd6 {[%emt 0:03:37]} Ra7 {[%emt 0:00:25]} 51. g4 {[%emt 0:03:07]} hxg4 {[%emt 0:00:23]} 52. Kxg4 {[%emt 0:01:58]} Kh6 {[%emt 0:00:36]} 53. h5 {[%emt 0:00:44]} Kg7 {[%emt 0:00:23]} 54. hxg6 {[%emt 0:00:14]} fxg6 {[%emt 0:00:06]} 55. Kg5 {[%emt 0:00:00]} Ra5+ {[%emt 0:00:00]} 56. Rd5 {[%emt 0:00:00]} Ra7 {[%emt 0:00:00]} 57. f4 {[%emt 0:00:00]} Kf7 {[%emt 0:00:00]} 58. Rd6 {[%emt 0:00:00]} Ra1 {[%emt 0:00:00]} 59. Rf6+ {[%emt 0:00:00]} Ke7 {[%emt 0:00:00]} 60. Rxg6 {[%emt 0:00:00]} Re1 {[%emt 0:00:00]} 61. Kf5 {[%emt 0:00:00]} Ra1 {[%emt 0:00:00]} 62. e5 {[%emt 0:00:00]} Ra5 {[%emt 0:00:00]} 63. Rg7+ {[%emt 0:00:00]} Kf8 {[%emt 0:00:00]} 64. Kf6 {[%emt 0:00:00]} Ra1 {[%emt 0:00:00]} 65. e6 {[%emt 0:00:00]} Ra6 {[%emt 0:00:00]} 66. f5 {[%emt 0:00:00]} Rb6 {[%emt 0:00:00]} 67. Ra7 {[%emt 0:00:00]} Rb8 {[%emt 0:00:00]} 68. Rh7 {[%emt 0:00:00]} Kg8 {[%emt 0:00:00]} 69. Rg7+ {[%emt 0:00:00]} Kh8 {[%emt 0:00:00]} 70. Rd7 {[%emt 0:00:00]} Rf8+ {[%emt 0:00:00]} 71. Rf7 {[%emt 0:00:00]} Rb8 {[%emt 0:00:00]} 72. e7 {[%emt 0:00:00]} Rb6+ {[%emt 0:00:00]} 73. Kg5 {[%emt 0:00:00]} Rb8 {[%emt 0:00:00]} 74. Rf8+ {[%emt 0:00:00]} Rxf8 {[%emt 0:00:00]} 75. exf8=Q+ {[%emt 0:00:00]} Kh7 {[%emt 0:00:00]} 76. Qe7+ {[%emt 0:00:00]} Kg8 {[%emt 0:00:00]} 77. Kg6 {[%emt 0:00:00]} Kh8 {[%emt 0:00:00]} 78. Qf8# {[%emt 0:00:00]} 1-0

[Event "GER-ch Youth-U12 2022"]
[Site "Willingen"]
[Date "2022.06.07"]
[Round "4.6"]
[White "Buchinger, Alexis"]
[Black "Sydykov Bayastan"]
[Result "1-0"]
[ECO "C10"]
[WhiteElo "1676"]
[BlackElo "1477"]
[Annotator "NA RC COMBH"]
[PlyCount "53"]
[EventDate "2022.06.05"]
[EventType "swiss"]
[EventRounds "9"]
[EventCountry "GER"]
[SourceTitle "playchess.com"]
[Source "ChessBase"]
[SourceQuality "1"]
[TimeControl "40/4500+30:900+30"]

1. e4 {[%emt 0:00:00]} e6 {[%emt 0:00:00]} 2. d4 {[%emt 0:00:00]} d5 {[%emt 0:00:00]} 3. Nc3 {[%emt 0:00:00]} dxe4 {[%emt 0:00:00]} 4. Nxe4 {[%emt 0:00:00]} Be7 {[%emt 0:00:00]} 5. Nf3 {[%emt 0:00:00]} Nf6 {[%emt 0:00:00]} 6. Nxf6+ {[%emt 0:00:00]} Bxf6 {[%emt 0:00:00]} 7. c3 {[%emt 0:00:00]} O-O {[%emt 0:00:00]} 8. Bd3 {[%emt 0:00:00]} Nc6 {[%emt 0:00:00]} 9. Bf4 {[%emt 0:00:00]} Qe7 {[%emt 0:00:00]} 10. O-O {[%emt 0:00:00]} Rd8 {[%emt 0:00:00]} 11. Qc2 {[%emt 0:00:00]} h6 {[%emt 0:00:00]} 12. Rad1 {[%emt 0:00:00]} b6 {[%emt 0:05:55]} 13. Rfe1 {[%emt 0:00:41]} Qd7 {[%emt 0:00:46]} 14. Ne5 {[%emt 0:04:18]} Bxe5 {[%emt 0:00:41]} 15. dxe5 {[%emt 0:00:27]} Qe8 {[%emt 0:01:52]} 16. Qe2 {[%emt 0:02:50]} Ne7 {[%emt 0:15:22]} 17. Qe4 {[%emt 0:01:12]} Ng6 {[%emt 0:00:32]} 18. Qxa8 {[%emt 0:05:15]} Nxf4 {[%emt 0:03:20]} 19. Qe4 {[%emt 0:02:25]} Ng6 {[%emt 0:03:22]} 20. h4 {[%emt 0:02:03]} Bd7 {[%emt 0:16:17]} 21. Bc2 {[%emt 0:01:43]} Bb5 {[%emt 0:11:01]} 22. Rxd8 {[%emt 0:01:11]} Qxd8 {[%emt 0:00:07]} 23. Rd1 {[%emt 0:01:26]} Qe8 {[%emt 0:01:56]} 24. Qd4 {[%emt 0:01:15]} c5 {[%emt 0:05:15]} 25. Qd8 {[%emt 0:02:35]} Nxe5 {[%emt 0:02:06]} 26. Qxe8+ {[%emt 0:00:17]} Bxe8 {[%emt 0:00:07]} 27. Rd8 {[%emt 0:00:07]} 1-0

[Event "GER-ch Youth-U12 2022"]
[Site "Willingen"]
[Date "2022.06.07"]
[Round "4.7"]
[White "Kulkovets, Roman"]
[Black "Neuhoff, Laertes"]
[Result "1/2-1/2"]
[ECO "C54"]
[WhiteElo "1099"]
[BlackElo "1990"]
[Annotator "TA"]
[PlyCount "94"]
[EventDate "2022.06.05"]
[EventType "swiss"]
[EventRounds "9"]
[EventCountry "GER"]
[SourceTitle "playchess.com"]
[Source "ChessBase"]
[SourceQuality "1"]
[TimeControl "40/4500+30:900+30"]

{[%evp 17,94,0,0,0,0,0,0,0,0,0,0,0,0,0,7,0,0,0,25,27,19,33,38,0,0,-70,-77,-64,-66,-66,-64,-66,-67,-71,-73,-100,-32,-116,-102,-116,-96,-95,-70,-142,-123,-202,-143,-145,-151,-151,-133,-475,0,-462,0,0,0,0,0,0,0,0,0,0,0,0,0,0,82,0,0,0,8,0,0,0,0,0,0]} 1. e4 {[%emt 0:00:00]} e5 {[%emt 0:00:00]} 2. Nf3 {[%emt 0:00:00]} Nc6 {[%emt 0:00:00]} 3. Bc4 {[%emt 0:00:00]} Bc5 {[%emt 0:00:00]} 4. c3 {[%emt 0:00:00]} Nf6 {[%emt 0:00:00]} 5. d4 {[%emt 0:00:00]} exd4 {[%emt 0:00:00]} 6. cxd4 {[%emt 0:00:00]} Bb4+ {[%emt 0:00:00]} 7. Bd2 {[%emt 0:00:00]} Nxe4 {[%emt 0:00:00]} 8. Bxb4 {[%emt 0:00:00]} Nxb4 {[%emt 0:00:00]} 9. Bxf7+ {[%emt 0:00:00]} Kxf7 {[%emt 0:00:00][%cal Be8f7,Bf7f8,Bf8e7][%mdl 32]} 10. Qb3+ {[%emt 0:00:00] C54: Giuoco Piano: 4 c3 Nf6, main lines with 5 d4 and 5 d3.} Kf8 $1 {[%emt 0:00:00][%mdl 4] is more profitable than 10...d5 at the moment.} 11. Qxb4+ {[%emt 0:00:00]} Qe7 $1 {[%emt 0:00:00]} 12. Qxe7+ {[%emt 0:00:00]} Kxe7 {[%emt 0:00:00]} 13. O-O {[%emt 0:00:00]} Kd8 {[%emt 0:00:00]} 14. Re1 {[%emt 0:00:00]} Nf6 {[%emt 0:00:00]} 15. Nc3 {[%emt 0:24:07]} h6 {[%emt 0:35:01] [#]} 16. Ne5 $146 {[%emt 0:00:00][%cal Re5f7] [#]} ({Predecessor:} 16. d5 d6 17. Nd4 Bd7 18. f3 Re8 19. Rad1 c6 20. Rxe8+ Kxe8 21. Ne4 Nxe4 22. fxe4 {0-1 (39) Loutragotis,D (2194)-Samaridis,K (2057) Nikaia 2017}) 16... Rf8 {[%emt 0:00:37] Against Nf7+} 17. Ng6 {[%emt 0:00:00] Pair of Knights!} Re8 {[%emt 0:04:25]} 18. Rxe8+ {[%emt 0:00:00]} Nxe8 {[%emt 0:02:51]} 19. Re1 {[%emt 0:00:00]} d6 {[%emt 0:00:52]} 20. Nd5 {[%emt 0:00:00][%cal Oe1e8]} c6 {[%emt 0:16:38]} 21. Rxe8+ {[%emt 0:00:00]} Kxe8 $11 {[%emt 0:00:48][%mdl 4096] Endgame KRB-KNN} 22. Nc7+ {[%emt 0:00:00]} Kf7 {[%emt 0:00:59]} 23. Nh8+ {[%emt 0:00:00]} Kg8 {[%emt 0:01:46]} 24. Nxa8 {[%emt 0:00:00]} Kxh8 $15 {[%emt 0:00:25] KB-KN} 25. Nc7 {[%emt 0:00:00]} Bd7 {[%emt 0:02:46] Inhibits Ne8.} 26. d5 {[%emt 0:00:00]} g5 {[%emt 0:12:37]} (26... Kg8 $17) 27. dxc6 {[%emt 0:00:00]} (27. f4 $15) 27... bxc6 $17 {[%emt 0:00:22][%cal Bb7c6,Bc6c5,Bc5c4][%mdl 32]} 28. Na6 {[%emt 0:00:00]} c5 {[%emt 0:01:15]} 29. Nc7 {[%emt 0:00:00]} Bc6 {[%emt 0:02:09] And now ...Kg7 would win.} 30. g3 {[%emt 0:00:00]} (30. b4 $1 $15) 30... Kg7 {[%emt 0:01:14]} 31. b4 {[%emt 0:00:00]} (31. f4 $17) 31... c4 {[%emt 0:02:20]} ({Stronger than} 31... cxb4 32. Na6 $17) 32. Ne6+ {[%emt 0:00:00]} Kf6 {[%emt 0:00:11]} 33. Nd4 {[%emt 0:00:00] [#]} Ba4 {[%emt 0:02:17]} 34. Ne2 $2 {[%emt 0:00:00][%mdl 8192]} (34. f4 $17 {nothing else works.}) 34... d5 $2 {[%emt 0:00:42]} (34... g4 $19 35. Nc3 Bd7) 35. Kf1 $2 {[%emt 0:00:00][%mdl 8192]} (35. f4 $1 $11) 35... Ke5 $2 {[%emt 0:00:40]} (35... g4 $19 36. Nc3 Bc6) 36. f4+ $11 {[%emt 0:00:00]} gxf4 {[%emt 0:00:15]} 37. gxf4+ {[%emt 0:00:00]} Kf5 {[%emt 0:00:23] ...Bd1 is the strong threat.} (37... Ke4 $5 38. Nc3+ Kd3 39. Nxa4 c3 40. Nxc3 Kxc3 $11) 38. Ke1 {[%emt 0:00:00] Prevents Bd1.} Be8 {[%emt 0:00:41]} 39. Kd2 {[%emt 0:00:00]} Ke4 {[%emt 0:01:45] Threatens to win with ...d4.} 40. Nc3+ {[%emt 0:00:00]} Kxf4 {[%emt 0:00:52]} 41. Nxd5+ {[%emt 0:00:00]} Ke5 {[%emt 0:10:01]} 42. Ne3 Bf7 (42... Kf4 $11 {keeps the balance.} 43. Nxc4 h5) 43. Nc2 {[%emt 0:00:02]} (43. Kc3 $16) 43... Be8 {[%emt 0:00:01] The position is equal.} 44. Ne3 Kf4 {[%emt 0:00:03][%cal Oc4c3] aiming for ...c3+!} 45. Nd5+ Kg5 {[%emt 0:00:02]} 46. Ne3 {[%emt 0:00:02]} Kf4 {[%emt 0:00:46][%cal Oc4c3] Strongly threatening ...c3+!} 47. Nd5+ Ke5 {[%emt 0:00:09] Whites escaped into a draw.  Weighted Error Value: White=0.52/Black=0.33} 1/2-1/2

[Event "GER-ch Youth-U12 2022"]
[Site "Willingen"]
[Date "2022.06.07"]
[Round "4.9"]
[White "Blodig, Vincent"]
[Black "Polzin, Gustav"]
[Result "1-0"]
[ECO "B23"]
[WhiteElo "1461"]
[BlackElo "1643"]
[Annotator "NA RC COMBH"]
[PlyCount "43"]
[EventDate "2022.06.05"]
[EventType "swiss"]
[EventRounds "9"]
[EventCountry "GER"]
[SourceTitle "playchess.com"]
[Source "ChessBase"]
[SourceQuality "1"]
[TimeControl "40/4500+30:900+30"]

1. e4 {[%emt 0:00:00]} c5 {[%emt 0:00:00]} 2. Nc3 {[%emt 0:00:00]} Nc6 {[%emt 0:00:00]} 3. Nge2 {[%emt 0:00:00]} e5 {[%emt 0:00:00]} 4. Nd5 {[%emt 0:00:00]} g6 {[%emt 0:00:00]} 5. Nec3 {[%emt 0:00:00]} a6 {[%emt 0:00:00]} 6. a4 {[%emt 0:01:40]} b6 {[%emt 0:00:00]} 7. Bc4 {[%emt 0:01:31]} Bg7 {[%emt 0:00:00]} 8. d3 {[%emt 0:02:21]} Nd4 {[%emt 0:07:07]} 9. O-O {[%emt 0:01:40]} Nh6 {[%emt 0:02:31]} 10. f4 {[%emt 0:04:16]} d6 {[%emt 0:00:51]} 11. fxe5 {[%emt 0:05:40]} Bg4 {[%emt 0:02:48]} 12. Qe1 {[%emt 0:04:22]} dxe5 {[%emt 0:07:20]} 13. Bxh6 {[%emt 0:01:44]} O-O {[%emt 0:06:10]} 14. Bxg7 {[%emt 0:02:55]} Kxg7 {[%emt 0:00:09]} 15. Qg3 {[%emt 0:03:40]} b5 {[%emt 0:06:35]} 16. axb5 {[%emt 0:03:14]} axb5 {[%emt 0:00:39]} 17. Rxa8 {[%emt 0:00:25]} Qxa8 {[%emt 0:00:15]} 18. Qxe5+ {[%emt 0:00:41]} f6 {[%emt 0:00:15]} 19. Nxf6 {[%emt 0:01:11]} Nc6 {[%emt 0:01:06]} 20. Qc7+ {[%emt 0:00:37]} Kh6 {[%emt 0:00:52]} 21. Qxh7+ {[%emt 0:00:20]} Kg5 {[%emt 0:00:04]} 22. h4# {[%emt 0:00:11]} 1-0